Cogmind - Beta 15 @@@ ROGUE MODE // 2025.05.20 @ 19:29:31 Player: Darcyisverycute Result: Destroyed by B-86 Titan with Hardcell Cannon Performance ------------- Evolutions (7) 3500 Regions Visited (20) 4000 Robots Destroyed (229) 1145 Value Destroyed (12050) 12050 Prototype IDs (38) 760 Alien Tech Used (0) 0 Bonus (8678) 8678 TOTAL SCORE: 30133 Bonus ------- High Alert Combat Kills 2337 Follower Combat Kills 2892 Entered Garrisons 1200 Used RIF Installer 2000 Aligned with FarCom 300 Friendly Fire -51 Cogmind --------- Core Integrity 0/1300 Matter 231/300 Energy 100/100 System Corruption 1% Temperature Cool (9) Movement Core (50) Location -3/Garrison Parts ------- > --- POWER (2) -------- (None) > --- PROPULSION (6) --- (None) > --- UTILITY (10) ----- Relay Coupler [Sentry] (23) > --- WEAPON (3) ------- (None) > --- INVENTORY (5) ---- Light Antimatter Reactor Advanced Particle Charger Guided Plasma Cannon Micro-nuke Launcher Peak State ------------ > --- POWER ------------ Reinforced Fission Core Micro Fission Core > --- PROPULSION ------- Enhanced Armored Leg Enhanced Armored Leg Enhanced Armored Leg Enhanced Armored Leg > --- UTILITY ---------- Advanced Cryofiber Web Advanced Heat Sink Advanced Heat Sink Improved Cooling System Lightpack 2.0 Improved Medium Armor Plating Relay Coupler [Swarmer] Relay Coupler [Sentry] > --- WEAPON ----------- Enhanced Nova Cannon Enhanced Nova Cannon Enhanced Nova Cannon > --- INVENTORY -------- Micro Fission Core Hybrid Antimatter Reactor Improved Treads Enhanced Armored Medium Treads Enhanced Armored Medium Treads Enhanced Armored Medium Treads Enhanced Armored Leg Antigrav System Combat Linear Gravjet Combat Linear Gravjet Combat Linear Gravjet Combat Linear Gravjet Improved Heat Sink High-capacity Matter Pod 8R-AWN's Armor/EX Advanced Hacking Suite Relay Coupler [NC] Relay Coupler [NC] Relay Coupler [Demolisher] Relay Coupler [Demolisher] Relay Coupler [Proto] Relay Coupler [Proto] Skeleton Box AS-neutralizer No. 17b Tesla Rifle Compact HERF Cannon Matter Neutralizer Guided Plasma Cannon Enhanced Nova Cannon Enhanced Nova Cannon Enhanced Nova Cannon Enhanced Gauss Cannon Heavy Shock Bomb Launcher Missile Launcher Micro-nuke Launcher Micro-nuke Launcher Remote Datajack Improved Remote Datajack [Rating: 155] Favorites ----------- Power Reinforced Fission Core Engine Light Ion Engine Power Core Reinforced Fission Core Reactor Particle Reactor Propulsion Light Treads Treads Light Treads Leg Carbon-fiber Leg Wheel Compact Wheel Hover Unit Gravmag System Flight Unit Cesium-ion Thruster Utility Huge Storage Unit Device Experimental Heat Sink Storage Huge Storage Unit Processor Experimental Targeting Computer Hackware Relay Coupler [Sentry] Protection Medium Armor Plating Weapon Autogun Energy Gun Advanced Beam Rifle Energy Cannon Compact HERF Cannon Ballistic Gun Autogun Ballistic Cannon Assault Cannon Launcher EMP Blaster Special Weapon Remote Datajack Special Melee Weapon Advanced Datajack Build | -11 -10 -10 -10 -9 -8 -8 -8 -7 -7 -7 -7 -6 -6 -5 -5 -4 -4 -4 -3 -3 ------- Run | Yrd Mat Min Exi Min Mat Gar Mat Fac Gar Fac Gar Fac Gar Fac Gar Fac Arm Lab Res Gar Slots Evolved 14 | . . . . . 4 . . 2 . . . 2 . 2 . 2 . . 2 . Power 1 | . . . . . . . . . . . . 1 . . . . . . . . Propulsion 4 | . . . . . 1 . . 1 . . . . . . . . . . 2 . Utility 8 | . . . . . 3 . . 1 . . . 1 . 1 . 2 . . . . Weapon 1 | . . . . . . . . . . . . . . 1 . . . . . . Parts Attached 246 | 7 10 1 19 1 7 8 19 1 19 6 26 18 29 6 11 13 36 . 7 2 Power 18 | 1 1 . 2 . . . . . 1 . 1 . 7 . 2 1 2 . . . Engine 8 | 1 . . 1 . . . . . . . 1 . 4 . 1 . . . . . Core 7 | . 1 . 1 . . . . . 1 . . . 2 . . . 2 . . . Reactor 3 | . . . . . . . . . . . . . 1 . 1 1 . . . . Propulsion 66 | 2 1 . 6 . . 3 5 . 7 . 8 . 12 . 3 . 14 . 4 1 Treads 22 | 2 1 . 4 . . 1 3 . 5 . . . . . . . 6 . . . Leg 32 | . . . 2 . . 2 1 . 2 . 5 . 12 . 3 . 5 . . . Wheel 1 | . . . . . . . 1 . . . . . . . . . . . . . Hover 7 | . . . . . . . . . . . 2 . . . . . 3 . 1 1 Flight 4 | . . . . . . . . . . . 1 . . . . . . . 3 . Utility 110 | 2 3 . 8 . 6 3 7 1 9 6 9 18 7 5 4 9 10 . 2 1 Device 22 | 1 . . 3 . 3 . 2 . 1 . 1 . 2 1 1 2 4 . . 1 Storage 6 | 1 2 . . . . . 2 . 1 . . . . . . . . . . . Processor 4 | . . . 1 . 1 1 . 1 . . . . . . . . . . . . Hackware 56 | . . . . . . 1 1 . 1 6 8 18 1 4 3 6 5 . 2 . Protection 22 | . 1 . 4 . 2 1 2 . 6 . . . 4 . . 1 1 . . . Artifact . | . . . . . . . . . . . . . . . . . . . . . Weapon 52 | 2 5 1 3 1 1 2 7 . 2 . 8 . 3 1 2 3 10 . 1 . Energy Gun 7 | 1 . . . . . . 3 . . . 1 . . . . 2 . . . . Energy Cannon 8 | . . . . 1 . . . . . . . . 1 1 . . 5 . . . Ballistic Gun 15 | 1 2 1 3 . . . 2 . 1 . 2 . 1 . . 1 . . 1 . Ballistic Cannon 8 | . . . . . 1 2 . . . . 3 . . . . . 2 . . . Launcher 10 | . 3 . . . . . 2 . . . 1 . . . 2 . 2 . . . Special Weapon 3 | . . . . . . . . . 1 . 1 . 1 . . . . . . . Impact Weapon . | . . . . . . . . . . . . . . . . . . . . . Slashing Weapon . | . . . . . . . . . . . . . . . . . . . . . Piercing Weapon . | . . . . . . . . . . . . . . . . . . . . . Special Melee Weapon 1 | . . . . . . . . . . . . . . . . . 1 . . . Unidentified Prototypes 15 | . . . 5 . 1 1 4 . . . . . . . . 1 2 . 1 . Parts Lost 88 | . . . 6 . . . 4 . 10 2 3 . 9 1 2 3 37 . . 11 Power 12 | . . . 1 . . . . . 1 . 1 . 3 1 1 . 4 . . . Propulsion 29 | . . . 2 . . . 1 . 6 2 1 . 3 . 1 1 7 . . 5 Utility 33 | . . . 2 . . . 2 . 3 . . . 3 . . 1 17 . . 5 Weapon 14 | . . . 1 . . . 1 . . . 1 . . . . 1 9 . . 1 Highest Loss Streak 17 | . . . 6 . . . 2 . 5 2 2 . 6 1 1 2 17 . . 7 To Critical Strikes 3 | . . . 3 . . . . . . . . . . . . . . . . . Average Backups 24 | 2 19 25 18 20 19 19 20 20 20 36 36 28 31 36 36 36 28 5 4 3 Power . | 1 1 1 1 . . . . . . . . . 1 . . . . . . . Propulsion 2 | . 4 6 4 3 2 2 . . . . 2 1 3 3 2 1 7 2 1 . Utility 13 | . 7 10 7 12 10 10 13 13 13 31 27 20 18 25 24 24 12 1 1 1 Weapon 5 | . 7 7 4 4 5 5 4 5 4 1 2 4 5 5 6 8 6 2 2 2 Tool/Special . | . . . . . . . . . . . . . . . . . . . . . Unused Backups 87 | . 8 1 6 . 2 7 1 . 2 . 12 . 11 . 3 . 32 . . 2 Power 8 | . 2 . 3 . . . . . . . . . . . . . 2 . . 1 Propulsion 14 | . 3 . . . 1 . . . . . . . . . . . 10 . . . Utility 53 | . 2 . 2 . 1 6 1 . 2 . 11 . 9 . 3 . 15 . . 1 Weapon 7 | . 1 1 1 . . 1 . . . . . . . . . . 3 . . . Tool/Special 5 | . . . . . . . . . . . 1 . 2 . . . 2 . . . Average Slot Usage (%) 88 | . 99 100 90 100 91 97 98 89 90 77 76 71 80 80 84 87 67 26 40 40 Engine 2 | . 7 . 7 . . . . . . . 1 6 5 . 2 . . . . . Core 6 | . 6 14 6 14 9 9 9 7 6 7 5 . 3 2 . . 3 . . . Treads 12 | . 28 28 25 . 5 1 14 15 18 22 1 . . . . . 2 10 2 . Leg 11 | . . . 2 28 18 25 5 . 5 7 21 26 25 23 22 20 14 . . . Device 5 | . 3 . . 9 22 6 12 12 10 . 2 . 2 3 2 9 10 5 4 6 Storage 9 | . 14 14 12 14 9 9 12 7 7 7 7 6 6 5 5 5 4 . . . Processor 3 | . . . 1 . 1 11 9 11 7 7 2 . . . . . . . . . Hackware 5 | . . . . . . . 1 7 3 6 15 17 13 19 24 19 10 10 16 16 Protection 7 | . 10 14 6 4 8 15 9 3 10 2 . . 5 1 . 5 5 . . . Energy Gun 1 | . 2 . . . . . 6 7 4 . . . . . . 2 . . . . Energy Cannon 1 | . . . . 1 . . . . . 2 2 . 1 10 10 7 5 . . . Ballistic Gun 10 | . 23 26 25 26 14 1 6 7 7 7 3 . 3 . . . . . 2 2 Ballistic Cannon 2 | . . . . . 3 12 4 . . . 3 6 6 . . . 3 . . . Special Weapon 1 | . . . . . . . . . 1 4 3 5 . 5 5 5 . . . . Peak Build Rating 155 | 7 15 15 58 62 89 79 63 58 76 85 92 95 112 126 128 144 155 43 68 73 Average Rating 58 | 5 12 14 16 60 61 60 53 56 61 78 84 84 94 114 117 135 112 43 62 60 On Entrance 64 | . 7 15 15 58 62 59 62 54 58 76 78 92 84 112 110 128 132 43 43 67 Naked Turns . | . . . . . . . . . . . . . . . . . . . . . Heaviest Build 131 | 12 100 100 120 120 121 130 125 110 131 25 35 35 64 74 63 73 82 1 7 9 Greatest Support 83 | 40 40 40 60 60 60 75 70 16 60 60 70 70 78 78 83 83 83 3 17 52 Greatest Overweight (x) 9 | . 2 2 3 1 2 3 7 6 7 1 2 . . . . . 9 . . . Average Overweight (x) 1 | . 1 2 1 1 1 1 5 6 2 . . . . . . . . . . . Largest Inventory Capacity 40 | 8 25 25 25 25 25 25 25 25 40 40 40 40 40 40 40 40 40 5 5 5 Average Capacity 28 | 7 22 25 22 25 25 25 25 25 26 40 40 40 40 40 40 40 34 5 5 5 Most Carried 40 | 6 25 25 25 24 25 25 25 25 39 40 40 40 40 39 40 40 40 5 5 5 Average Carried 26 | 3 19 24 19 24 23 24 24 24 24 38 38 29 33 38 38 38 30 5 4 4 Final Capacity 40 | 8 25 25 25 25 25 25 25 25 40 40 40 40 40 40 40 40 5 5 5 5 Final Carried 40 | 6 25 25 24 24 25 25 25 25 39 38 40 23 39 39 39 35 5 5 5 4 Class Distribution -------------------- 33% | Mutant 31% | Scavenger-Mutant 18% | Bothacker-Mutant 5% | Botlord-Tank 4% | Botlord-Gunner Dominant Class ---------------- Mutant | -10/Materials Mutant | -10/Mines Mutant | -10/Exiles Scavenger-Mutant | -9/Mines Scavenger-Mutant | -8/Materials Scavenger-Mutant | -8/Garrison Scavenger-Mutant | -8/Materials Scavenger-Mutant | -7/Factory Scavenger-Mutant | -7/Garrison Bothacker-Mutant | -7/Factory Bothacker-Mutant | -7/Garrison Commander-Mutant | -6/Factory Bothacker-Mutant | -6/Garrison Bothacker-Gunner | -5/Factory Botlord-Gunner | -5/Garrison Botlord-Tank | -4/Factory Botlord-Tank | -4/Armory Mutant | -4/Lab Hacker-Sprinter | -3/Research Hacker-Mutant | -3/Garrison Resources | -11 -10 -10 -10 -9 -8 -8 -8 -7 -7 -7 -7 -6 -6 -5 -5 -4 -4 -4 -3 -3 ----------- Run | Yrd Mat Min Exi Min Mat Gar Mat Fac Gar Fac Gar Fac Gar Fac Gar Fac Arm Lab Res Gar Matter Collected 9461 | 285 384 106 530 91 154 1023 1079 . 1129 151 438 455 1584 . 497 475 919 . . 161 Remotely . | . . . . . . . . . . . . . . . . . . . . . Salvage Created 8579 | 104 1002 77 120 91 228 867 1633 . 1060 183 272 70 803 . 881 96 997 . . 95 Parts 431 | 9 76 7 11 7 10 43 95 . 45 10 14 4 37 . 37 4 19 . . 3 Haulers Intercepted 6 | . 2 . . . . . 4 . . . . . . . . . . . . . Recyclers Shooed 4 | . 1 . . . 1 . 2 . . . . . . . . . . . . . Parts Field Recycled . | . . . . . . . . . . . . . . . . . . . . . Retrieved Matter . | . . . . . . . . . . . . . . . . . . . . . Parts Self-Destructed . | . . . . . . . . . . . . . . . . . . . . . Prevented . | . . . . . . . . . . . . . . . . . . . . . Kills | -11 -10 -10 -10 -9 -8 -8 -8 -7 -7 -7 -7 -6 -6 -5 -5 -4 -4 -4 -3 -3 ------- Run | Yrd Mat Min Exi Min Mat Gar Mat Fac Gar Fac Gar Fac Gar Fac Gar Fac Arm Lab Res Gar Combat Hostiles Destroyed 179 | . 17 3 1 2 1 25 30 . 27 1 6 2 25 . 14 2 21 . . 2 Guns 64 | . 9 3 1 . 1 4 18 . 20 . . . 3 . . 1 2 . . 2 Cannons 65 | . . . . 2 . 10 7 . 1 1 5 2 16 . 9 . 12 . . . AOE 45 | . 8 . . . . 11 5 . 6 . . . 6 . 2 1 6 . . . Classes Destroyed 18 | 2 7 . . . 1 3 1 . 1 1 1 . 1 . . . . . . . Worker 11 | . 3 2 . . . . 5 . . . . 1 . . . . . . . . Builder 5 | . 2 . . . . . 3 . . . . . . . . . . . . . Tunneler 3 | 2 . . . . . . 1 . . . . . . . . . . . . . Hauler 6 | . 2 . . . . . 4 . . . . . . . . . . . . . Recycler 7 | 1 3 . . . 2 . 1 . . . . . . . . . . . . . Minesweeper 1 | . . . . . . . . . . 1 . . . . . . . . . . Operator 4 | . 1 . . . . . 2 . . 1 . . . . . . . . . . Watcher 4 | . 1 . . . . 1 2 . . . . . . . . . . . . . Swarmer 50 | . 6 3 . . . 10 4 . 8 . 3 2 5 . 6 2 . . . 1 Grunt 67 | . 11 . . 2 . 6 15 . 11 2 1 1 13 . 1 1 2 . . 1 Brawler 12 | . . . . . . 1 . . 1 . . . 3 . 1 . 6 . . . Duelist 7 | . . . . . . 5 . . . . . . . . 2 . . . . . Protector 1 | . . . . . . . 1 . . . . . . . . . . . . . Sentry 21 | . . . . . 1 2 8 . 6 . . . 3 . 1 . . . . . Specialist 7 | . . . . . . . . . . . . . 1 . . . 6 . . . Hunter 7 | . . . . . . 1 2 . . . . . . . 2 . 2 . . . Programmer 14 | . . . . . . . . . 1 2 2 . 2 . 2 . 5 . . . Behemoth 1 | . . . . . . . . . . . 1 . . . . . . . . . Best Kill Streak 12 | 2 8 3 1 2 1 4 12 . 7 2 5 2 7 . 5 2 4 . . 1 Combat Bots Only 7 | . 4 3 1 2 1 4 5 . 7 1 5 2 7 . 5 2 4 . . 1 Max Kills in Single Turn 4 | 1 4 1 1 1 1 3 3 . 3 4 1 1 2 . 1 1 2 . . 1 Gunslinging . | . . . . . . . . . . . . . . . . . . . . . Exploded 3 | . 2 . . . . 3 3 . 3 . . . 2 . 1 1 2 . . . Melee . | . . . . . . . . . . . . . . . . . . . . . Uniques/NPCs Destroyed 1 | . . . 1 . . . . . . . . . . . . . . . . . 8R-AWN (-10/Exiles) Combat | -11 -10 -10 -10 -9 -8 -8 -8 -7 -7 -7 -7 -6 -6 -5 -5 -4 -4 -4 -3 -3 -------- Run | Yrd Mat Min Exi Min Mat Gar Mat Fac Gar Fac Gar Fac Gar Fac Gar Fac Arm Lab Res Gar Hostile Shots Fired 1675 | . 54 14 76 . 9 65 136 . 275 19 54 22 231 7 73 41 471 . 15 113 Missed 556 | . 21 2 17 . 2 24 47 . 82 7 17 7 73 3 20 19 176 . 11 28 Hits 1119 | . 33 12 59 . 7 41 89 . 193 12 37 15 158 4 53 22 295 . 4 85 Melee 19 | . . . . . . 2 . . 4 . . . 2 . 2 . 6 . . 3 Projectile 1100 | . 33 12 59 . 7 39 89 . 189 12 37 15 156 4 51 22 289 . 4 82 AOE 3 | . . . . . . 3 . . . . . . . . . . . . . . Critical Strikes 63 | . 2 . 27 . . 2 4 . 6 . 1 1 3 . 2 . 13 . . 2 Part Disruptions 5 | . . . . . . . . . . . . . . . . . 5 . . . Damage Taken 18134 | . 436 162 1025 . 104 937 1434 22 1992 200 440 321 2119 173 803 548 5083 . 91 2244 Core 3622 | . 92 . 155 . 26 106 206 . 177 35 3 56 331 . 119 104 888 . 45 1279 Absorbed by Shields 1076 | . . . . . . . 28 . 15 . 9 . 592 . 249 . 178 . . 5 Ignored by Resistances 396 | . . . . . . 72 . 5 286 . . . 33 . . . . . . . Regen/Repaired (Parts) 30 | . . . . . . . 30 . . . . . . . . . . . . . Core Remaining (%) 51 | 100 . . . 1 . . 38 . . . 69 . 54 . 88 . . 13 . . Volleys Fired 820 | 5 45 10 49 15 11 62 111 . 92 9 36 40 106 17 66 38 92 . 2 14 Largest 3 | 2 2 2 2 2 2 2 2 . 2 1 1 1 2 2 2 2 3 . 1 1 Hottest 360 | 60 60 66 46 120 60 120 98 . 120 120 120 47 136 207 207 182 360 . 35 35 Shots Fired 1298 | 10 88 20 90 21 22 96 216 . 158 10 40 40 166 18 78 46 163 . 2 14 Gun 601 | 10 76 18 86 12 19 17 142 . 134 1 8 . 25 . . 8 29 . 2 14 Cannon 492 | . . . . 9 3 62 64 . 9 2 20 10 121 2 65 8 117 . . . Launcher 81 | . 12 2 4 . . 17 10 . 10 . . . 11 . 4 . 11 . . . Special 124 | . . . . . . . . . 5 7 12 30 9 16 9 30 6 . . . Kinetic 736 | 5 69 18 86 12 22 65 141 . 79 1 12 10 134 . . . 66 . 2 14 Thermal 310 | 5 7 . . 9 . 14 65 . 64 2 15 . 12 1 28 16 72 . . . Explosive 38 | . . . . . . . 7 . 10 . . . 11 . . . 10 . . . Electromagnetic 90 | . 12 2 4 . . 17 3 . . . 1 . . 1 41 . 9 . . . Robot Hit Streak 26 | 4 8 3 22 3 4 19 15 . 26 4 9 9 9 16 18 9 11 . 5 7 Robot Miss Streak 6 | 1 5 2 4 2 2 2 3 . 4 5 2 3 4 1 4 2 6 . . 2 Penetration Max 2 | . . . . . . 2 2 . . . . . . . . . . . 1 1 Secondary Targets 6 | . 2 . . . . . 1 . 3 . . . . . . . . . . . Max Gunslinging Chain 1 | . 1 . . . . . 1 . 1 . . . . . . . . . . . Shots Hit Robots 770 | 8 47 11 65 7 11 49 138 . 114 7 23 26 70 16 54 33 83 . 2 6 Core Hits 410 | 4 44 5 15 2 4 34 68 . 84 8 13 4 52 . 21 4 44 . . 4 Critical Kills 15 | . 1 . . . . 4 6 . 3 . . . . . . . 1 . . . Critical Parts Destroyed 15 | . . . . 3 1 3 3 . 4 . 1 . . . . . . . . . Critical Strikes 67 | . 1 . . 3 1 7 24 . 11 . 1 3 8 . . . 8 . . . Burn 14 | . . . . . . . 11 . 3 . . . . . . . . . . . Meltdown 1 | . . . . . . . . . . . . . . . . . 1 . . . Destroy 30 | . 1 . . 3 1 7 9 . 8 . 1 . . . . . . . . . Blast 22 | . . . . . . . 4 . . . . 3 8 . . . 7 . . . Melee Attacks . | . . . . . . . . . . . . . . . . . . . . . Impact . | . . . . . . . . . . . . . . . . . . . . . Slashing . | . . . . . . . . . . . . . . . . . . . . . Piercing . | . . . . . . . . . . . . . . . . . . . . . Sneak Attacks . | . . . . . . . . . . . . . . . . . . . . . Combat Hostiles . | . . . . . . . . . . . . . . . . . . . . . Follow-up Attacks . | . . . . . . . . . . . . . . . . . . . . . Damage Inflicted 23353 | 100 1169 182 1107 224 184 1650 3734 . 2902 673 607 276 3484 88 1887 334 4356 . 106 290 Guns 7198 | 100 550 142 993 124 160 269 1831 . 2029 7 104 . 195 . . 133 239 . 100 222 Cannons 9710 | . . . . 100 24 956 1067 . 246 81 503 276 1975 88 1726 201 2467 . . . Explosions 6357 | . 619 40 114 . . 425 831 . 627 585 . . 1305 . 161 . 1650 . . . Melee . | . . . . . . . . . . . . . . . . . . . . . Ramming 88 | . . . . . . . 5 . . . . . 9 . . . . . 6 68 Kinetic 9439 | 53 496 142 993 124 184 832 1798 . 1149 7 155 276 1931 . . . 977 . 100 222 Thermal 6695 | 47 226 . . 100 . 393 1179 . 1126 81 452 . 239 42 831 334 1645 . . . Explosive 4617 | . . . . . . . 586 . 627 585 . . 1305 . . . 1514 . . . Electromagnetic 2514 | . 447 40 114 . . 425 166 . . . . . . 46 1056 . 220 . . . Impact . | . . . . . . . . . . . . . . . . . . . . . Slashing . | . . . . . . . . . . . . . . . . . . . . . Piercing . | . . . . . . . . . . . . . . . . . . . . . Highest Corruption 14 | . . . . . . 1 1 . 14 14 14 . 3 . 2 . 2 2 . 1 Average Corruption 5 | . . . . . . 1 1 . 13 14 14 . 2 . 2 . 1 2 . 1 Corruption Purged . | . . . . . . . . . . . . . . . . . . . . . Corruption Blocked . | . . . . . . . . . . . . . . . . . . . . . Effects 188 | . . . . . . 12 13 . 48 26 38 . 30 . 9 . 12 . . . Message Errors 39 | . . . . . . 2 5 . 9 5 8 . 4 . 4 . 2 . . . Matter Fused 44 | . . . . . . 5 1 . 13 6 7 . 7 . 1 . 4 . . . Heat Flow Errors 29 | . . . . . . 3 2 . 4 6 3 . 5 . 1 . 5 . . . Energy Discharges 27 | . . . . . . 1 2 . 8 4 7 . 4 . 1 . . . . . Parts Rejected 1 | . . . . . . . . . . . . . . . . . 1 . . . Parts Fused 3 | . . . . . . . . . 1 . . . 1 . 1 . . . . . Data Loss (minor) 22 | . . . . . . . 3 . 6 3 5 . 4 . 1 . . . . . Data Loss (major) 2 | . . . . . . . . . 1 1 . . . . . . . . . . Misfires 11 | . . . . . . . . . 3 1 5 . 2 . . . . . . . Alerts 6 | . . . . . . . . . 2 . 1 . 3 . . . . . . . Misdirections 1 | . . . . . . . . . . . 1 . . . . . . . . . Weapon Failures 3 | . . . . . . 1 . . 1 . 1 . . . . . . . . . Overload Shots . | . . . . . . . . . . . . . . . . . . . . . Overflow Damage 430 | . 12 . 8 3 . 5 98 . 17 34 . 27 71 . 53 . 102 . . . Projectiles 241 | . . . . 3 . 5 51 . . . . 27 67 . 53 . 35 . . . Explosions 189 | . 12 . 8 . . . 47 . 17 34 . . 4 . . . 67 . . . Melee . | . . . . . . . . . . . . . . . . . . . . . Knockbacks 42 | . . . . . . 4 18 . . . . 3 8 . . . 9 . . . Impact . | . . . . . . . . . . . . . . . . . . . . . Kinetic 39 | . . . . . . 4 16 . . . . 3 8 . . . 8 . . . Secondary 3 | . . . . . . . 2 . . . . . . . . . 1 . . . Self-Inflicted Damage 824 | . 36 67 . . . 82 124 . 179 87 . . 90 . 28 . 102 . 2 27 Shots 32 | . 4 3 . . . 6 5 . 6 1 . . 2 . 2 . 3 . . . Rammed 30 | . . . . . . . 1 . . . . . . . . . . . 2 27 Targets Rammed 32 | . . . . . . . 1 . . . . . 2 . . . . . 2 27 Kicked 2 | . . . . . . . . . . . . . 2 . . . . . . . Crushed . | . . . . . . . . . . . . . . . . . . . . . Highest Temperature 506 | . 98 33 40 258 56 336 328 . 459 250 329 2 435 90 399 . 506 . . . Average Temperature 102 | . 24 12 14 80 21 70 68 . 123 82 125 2 150 51 134 . 134 . . . Received Heat Transfer 3930 | . 210 . . . 9 207 568 . 588 45 39 45 691 9 114 45 1132 . . 228 Effects 26 | . . . . . . 1 . . 6 1 . . 10 . 4 . 4 . . . Shutdowns 8 | . . . . . . . . . 1 . . . 5 . 2 . . . . . Energy Bleed 6 | . . . . . . 1 . . 1 . . . 2 . 1 . 1 . . . Interference 8 | . . . . . . . . . 4 1 . . 2 . . . 1 . . . Matter Decay 1 | . . . . . . . . . . . . . . . 1 . . . . . Damage (minor) 3 | . . . . . . . . . . . . . 1 . . . 2 . . . Siege Activations . | . . . . . . . . . . . . . . . . . . . . . Martial Activations . | . . . . . . . . . . . . . . . . . . . . . Shielding Activations . | . . . . . . . . . . . . . . . . . . . . . Robots Disrupted . | . . . . . . . . . . . . . . . . . . . . . Combat Hostiles . | . . . . . . . . . . . . . . . . . . . . . Robots Corrupted 4 | . . . . . . . 1 . . . . . . . 3 . . . . . Combat Hostiles 3 | . . . . . . . . . . . . . . . 3 . . . . . Parts Fried 10 | . . . . . . 2 . . . . . . . . 7 . 1 . . . Impact Corruptions 1 | . . . . . . . 1 . . . . . . . . . . . . . Robots Melted 2 | . . . . . . . . . . . 1 . . . . . 1 . . . Combat Hostiles 2 | . . . . . . . . . . . 1 . . . . . 1 . . . Parts Melted 28 | . . . . . . 2 7 . 6 2 2 . 1 . . . 8 . . . Heat Transferred 11134 | 100 375 . . 240 . 838 2999 . 2410 160 960 . 222 37 758 444 1591 . . . Parts Sabotaged 9 | . . . . . . . . . . . . . . . . . 9 . . . Parts Stolen . | . . . . . . . . . . . . . . . . . . . . . Parts Stripped . | . . . . . . . . . . . . . . . . . . . . . Power Chain Reactions 15 | . 6 1 . . . 4 4 . . . . . . . . . . . . . Alert | -11 -10 -10 -10 -9 -8 -8 -8 -7 -7 -7 -7 -6 -6 -5 -5 -4 -4 -4 -3 -3 ------- Run | Yrd Mat Min Exi Min Mat Gar Mat Fac Gar Fac Gar Fac Gar Fac Gar Fac Arm Lab Res Gar Maximum Alert Level 5 | . . . . . . 4 3 2 5 3 3 2 4 3 3 2 2 . . 1 Low Security (%) 27 | 100 100 100 . 100 100 16 . . . . . 2 . . . . 4 . 100 97 Level 1 16 | . . . . . . 37 . 28 8 . 6 69 8 16 23 47 55 . . 2 Level 2 19 | . . . . . . 4 28 71 17 91 36 28 12 3 32 52 39 . . . Level 3 23 | . . . . . . 22 71 . 27 8 57 . 29 80 43 . . . . . Level 4 12 | . . . . . . 18 . . 44 . . . 50 . . . . . . . Level 5 . | . . . . . . . . . 2 . . . . . . . . . . . High Security . | . . . . . . . . . . . . . . . . . . . . . Max Security . | . . . . . . . . . . . . . . . . . . . . . Peak Influence 1616 | 10 171 85 . 45 30 1404 1084 479 1616 848 891 656 1539 807 933 503 562 . 18 204 Initial 848 | . . 60 . . . . 684 479 266 848 398 467 268 807 261 489 165 . . 11 Average 549 | 1 48 10 . 7 4 601 815 427 980 619 689 350 1045 685 609 410 385 . 3 106 Influence Increases 10691 | 15 486 109 . 60 56 1484 1062 12 1550 163 643 922 1621 27 862 192 1121 . 33 273 Destroy 0b10 Robot/C 5200 | . 340 60 . 40 20 660 600 . 660 40 300 380 840 20 500 100 520 . . 120 Destroy 0b10 Robot/NC 240 | 15 60 10 . . 10 5 95 . . 5 . 25 . . 10 5 . . . . Destroy Leader 622 | . 66 10 . 10 10 20 182 . 30 20 30 74 40 . 40 20 70 . . . Allied During Kill 1045 | . . 23 . . . 71 17 . 44 17 56 390 213 7 119 18 60 . . 10 Trap Triggered on 0b10 60 | . . . . . . 30 . . 30 . . . . . . . . . . . Successful Hack 146 | . . . . . . . 21 12 . 13 21 16 14 . . 24 7 . 18 . Disable Machine 345 | . . . . . 15 60 60 . 15 30 15 30 30 . 15 . 75 . . . Anti-Garrison Action 1800 | . . . . . . 500 . . 650 . 200 . 350 . 100 . . . . . Destroy Structure 618 | . 20 6 . 10 1 93 57 . 61 38 6 7 59 . 33 10 194 . . 23 Partial Spotted 15 | . . . . . . . . . . . . . 15 . . . . . . . Lose Combat Pursuer 600 | . . . . . . 45 30 . 60 . 15 . 60 . 45 15 195 . 15 120 Influence Decreases 10630 | 15 331 264 . 60 56 80 1412 685 315 1210 321 1429 466 1192 303 786 1206 254 18 227 Entered New Map 4705 | . . 95 . . . . 720 575 115 768 171 424 116 732 113 444 174 254 . 4 Time Decay 2747 | 15 331 169 . 60 56 . 592 110 . 262 . 310 . 150 . 222 452 . 18 . Lost Part 820 | . . . . . . . 40 . 100 20 30 . 90 10 20 30 370 . . 110 Lost Ally 1483 | . . . . . . 80 60 . 100 10 120 420 260 . 170 90 60 . . 113 Purge Threat 875 | . . . . . . . . . . 150 . 275 . 300 . . 150 . . . Squads Dispatched 24 | . 1 . . . . . 7 . . 2 . 7 . . . 1 6 . . . Investigation 5 | . 1 . . . . . 4 . . . . . . . . . . . . . Extermination 5 | . . . . . . . . . . 1 . 1 . . . 1 2 . . . Reinforcement 10 | . . . . . . . 2 . . . . 4 . . . . 4 . . . Assault 1 | . . . . . . . 1 . . . . . . . . . . . . . Garrison 3 | . . . . . . . . . . 1 . 2 . . . . . . . . Intercept . | . . . . . . . . . . . . . . . . . . . . . Searches Triggered . | . . . . . . . . . . . . . . . . . . . . . Construction Impeded 2 | . . . . . . . . . . . . 2 . . . . . . . . Haulers Reinforced 1 | . . . . . . . . . . . . 1 . . . . . . . . Active Scanning Responses . | . . . . . . . . . . . . . . . . . . . . . Cargo Convoy Interrupts . | . . . . . . . . . . . . . . . . . . . . . Stealth | -11 -10 -10 -10 -9 -8 -8 -8 -7 -7 -7 -7 -6 -6 -5 -5 -4 -4 -4 -3 -3 --------- Run | Yrd Mat Min Exi Min Mat Gar Mat Fac Gar Fac Gar Fac Gar Fac Gar Fac Arm Lab Res Gar Distress Signals 16 | . 2 . . 1 . . 3 . . . . 3 . . . 2 5 . . . Communications Jammed . | . . . . . . . . . . . . . . . . . . . . . Distress Signals . | . . . . . . . . . . . . . . . . . . . . . Times Spotted 425 | . 22 3 4 1 5 35 43 . 37 6 24 26 53 7 39 24 61 . 7 28 Peak Tracking Total 15 | . 5 3 9 2 4 5 6 . 4 2 5 5 10 5 9 7 15 . 7 14 Tactical Retreats 22 | . . . . . . 2 2 . 2 . 1 . 3 . 2 1 4 . 1 4 Traps | -11 -10 -10 -10 -9 -8 -8 -8 -7 -7 -7 -7 -6 -6 -5 -5 -4 -4 -4 -3 -3 ------- Run | Yrd Mat Min Exi Min Mat Gar Mat Fac Gar Fac Gar Fac Gar Fac Gar Fac Arm Lab Res Gar Traps Triggered 38 | . 2 . . . . 9 . 1 6 . 5 . 3 . 2 . 5 . . 5 Indirectly 2 | . . . . . . 2 . . . . . . . . . . . . . . Trap Hack Attempts . | . . . . . . . . . . . . . . . . . . . . . Triggered . | . . . . . . . . . . . . . . . . . . . . . Disarmed . | . . . . . . . . . . . . . . . . . . . . . Reprogrammed . | . . . . . . . . . . . . . . . . . . . . . Reused 6 | . . . . . . 3 . . 3 . . . . . . . . . . . Traps Extracted . | . . . . . . . . . . . . . . . . . . . . . Installed 13 | . . . . . . 5 . . 4 4 . . . . . . . . . . Triggered 6 | . . . . . . 3 . . 3 . . . . . . . . . . . Most Traps Carried 4 | . . . . . . 2 . . 4 . . . . . . . . . . . Machines | -11 -10 -10 -10 -9 -8 -8 -8 -7 -7 -7 -7 -6 -6 -5 -5 -4 -4 -4 -3 -3 ---------- Run | Yrd Mat Min Exi Min Mat Gar Mat Fac Gar Fac Gar Fac Gar Fac Gar Fac Arm Lab Res Gar Machines Disabled 49 | . . . 3 . 1 8 4 . 6 2 5 2 8 . 3 2 5 . . . Max in Single Turn 2 | . . . 1 . 1 1 1 . 1 2 1 1 1 . 1 . 1 . . . Garrison Access 2 | . . . . . . . . . . . . 1 . . . . . . 1 . Garrison Relay 20 | . . . . . . 5 . . 5 . 4 . 4 . 2 . . . . . Machines Repaired . | . . . . . . . . . . . . . . . . . . . . . Machines Dismantled . | . . . . . . . . . . . . . . . . . . . . . Machines Sabotaged . | . . . . . . . . . . . . . . . . . . . . . Overloaded Fab Kills . | . . . . . . . . . . . . . . . . . . . . . Hacking | -11 -10 -10 -10 -9 -8 -8 -8 -7 -7 -7 -7 -6 -6 -5 -5 -4 -4 -4 -3 -3 --------- Run | Yrd Mat Min Exi Min Mat Gar Mat Fac Gar Fac Gar Fac Gar Fac Gar Fac Arm Lab Res Gar Machines Accessed 42 | . 1 . 2 . 1 1 8 1 1 5 3 4 3 3 1 1 4 . 3 . Terminals 27 | . 1 . . . . 1 7 . 1 3 3 . 3 1 1 1 4 . 1 . Fabricators 3 | . . . . . . . . . . 1 . 1 . 1 . . . . . . Repair Stations 1 | . . . . . . . 1 . . . . . . . . . . . . . Recycling Units 1 | . . . . . . . . . . . . 1 . . . . . . . . Scanalyzers . | . . . . . . . . . . . . . . . . . . . . . Garrison Access 8 | . . . . . 1 . . 1 . 1 . 2 . 1 . . . . 2 . Total Hacks 103 | . 2 . 2 . 1 1 21 1 1 16 4 30 4 5 1 2 8 . 4 . Successful 64 | . 1 . 2 . 1 . 5 1 1 11 2 28 1 4 . 1 3 . 3 . Failed 39 | . 1 . . . . 1 16 . . 5 2 2 3 1 1 1 5 . 1 . Catastrophic 11 | . . . . . . 1 5 . . 3 1 . 1 . . . . . . . Database Lockouts . | . . . . . . . . . . . . . . . . . . . . . Manual 33 | . 2 . 1 . . . 16 . . 6 . 2 . . . 1 5 . . . Terminals 54 | . 2 . . . . 1 19 . 1 7 4 . 4 3 1 2 8 . 2 . Fabricators 35 | . . . . . . . . . . 8 . 26 . 1 . . . . . . Repair Stations 2 | . . . . . . . 2 . . . . . . . . . . . . . Recycling Units 2 | . . . . . . . . . . . . 2 . . . . . . . . Scanalyzers . | . . . . . . . . . . . . . . . . . . . . . Garrison Access 8 | . . . . . 1 . . 1 . 1 . 2 . 1 . . . . 2 . Terminal Hacks 15 | . . . 2 . . . 1 . 1 2 2 . 1 2 . . 3 . 1 . Record 2 | . . . 1 . . . . . . . . . . . . . . . 1 . Robot Schematic 1 | . . . . . . . . . . 1 . . . . . . . . . . Open Door 3 | . . . . . . . . . 1 . 1 . . . . . 1 . . . Level Access Points 1 | . . . . . . . 1 . . . . . . . . . . . . . Emergency Access Points 1 | . . . . . . . . . . . 1 . . . . . . . . . Unreport Threat 4 | . . . . . . . . . . 1 . . . 2 . . 1 . . . Zone Layout 1 | . . . . . . . . . . . . . . . . . 1 . . . Patrol Navigation 1 | . . . . . . . . . . . . . 1 . . . . . . . Proto ID Catalog 1 | . . . 1 . . . . . . . . . . . . . . . . . Fabricator Hacks 32 | . . . . . . . . . . 7 . 24 . 1 . . . . . . Load Schematic 16 | . . . . . . . . . . 3 . 12 . 1 . . . . . . Build 16 | . . . . . . . . . . 4 . 12 . . . . . . . . Repair Station Hacks . | . . . . . . . . . . . . . . . . . . . . . Recycling Unit Hacks 1 | . . . . . . . . . . . . 1 . . . . . . . . Retrieve Matter 1 | . . . . . . . . . . . . 1 . . . . . . . . Scanalyzer . | . . . . . . . . . . . . . . . . . . . . . Garrison Access Hacks 8 | . . . . . 1 . . 1 . 1 . 2 . 1 . . . . 2 . Unlock Access 6 | . . . . . 1 . . 1 . 1 . 1 . 1 . . . . 1 . Seal Access 2 | . . . . . . . . . . . . 1 . . . . . . 1 . Unauthorized Hacks 8 | . 1 . . . . . 4 . . 1 . 1 . . . 1 . . . . Terminals 6 | . 1 . . . . . 3 . . 1 . . . . . 1 . . . . Botnet 5 | . . . . . . . 3 . . 1 . . . . . 1 . . . . Skim 1 | . 1 . . . . . . . . . . . . . . . . . . . Fabricators 1 | . . . . . . . . . . . . 1 . . . . . . . . Prioritize 1 | . . . . . . . . . . . . 1 . . . . . . . . Repair Stations 1 | . . . . . . . 1 . . . . . . . . . . . . . Patch 1 | . . . . . . . 1 . . . . . . . . . . . . . Recycling Units . | . . . . . . . . . . . . . . . . . . . . . Scanalyzers . | . . . . . . . . . . . . . . . . . . . . . Garrison Access . | . . . . . . . . . . . . . . . . . . . . . Data Cores Recovered 2 | . . . . . . . 1 . . 1 . . . . . . . . . . Used . | . . . . . . . . . . . . . . . . . . . . . Hacking Detections 28 | . 1 . . . . 1 7 . . 5 2 2 2 1 1 1 3 . 2 . Full Trace Events 5 | . . . . . . . 4 . . . . . 1 . . . . . . . Feedback Events . | . . . . . . . . . . . . . . . . . . . . . Feedback Blocked . | . . . . . . . . . . . . . . . . . . . . . Robot Schematics Acquired 1 | . . . . . . . . . . 1 . . . . . . . . . . Robots Built 27 | . . . . . . . . . . 5 . 22 . . . . . . . . Authchips 15 | . . . . . . . . . . 3 . 12 . . . . . . . . Time 914 | . . . . . . . . . . 518 . 396 . . . . . . . . Total Robot Build Rating 107 | . . . . . . . . . . 19 . 88 . . . . . . . . Part Schematics Acquired . | . . . . . . . . . . . . . . . . . . . . . Parts Built . | . . . . . . . . . . . . . . . . . . . . . Authchips . | . . . . . . . . . . . . . . . . . . . . . Time . | . . . . . . . . . . . . . . . . . . . . . Total Part Build Rating . | . . . . . . . . . . . . . . . . . . . . . Parts Repaired . | . . . . . . . . . . . . . . . . . . . . . Time . | . . . . . . . . . . . . . . . . . . . . . Parts Recycled . | . . . . . . . . . . . . . . . . . . . . . Recycled Matter . | . . . . . . . . . . . . . . . . . . . . . Retrieved Matter . | . . . . . . . . . . . . . . . . . . . . . Retrieved Components . | . . . . . . . . . . . . . . . . . . . . . Parts Scanalyzed . | . . . . . . . . . . . . . . . . . . . . . Part Schematics Acquired . | . . . . . . . . . . . . . . . . . . . . . Parts Damaged . | . . . . . . . . . . . . . . . . . . . . . Bothacking | -11 -10 -10 -10 -9 -8 -8 -8 -7 -7 -7 -7 -6 -6 -5 -5 -4 -4 -4 -3 -3 ------------ Run | Yrd Mat Min Exi Min Mat Gar Mat Fac Gar Fac Gar Fac Gar Fac Gar Fac Arm Lab Res Gar Used RIF Installer 4 | . . . . . . . . . 1 . 1 . 1 . 1 . . . . . Command Fork 1 | . . . . . . . . . . . . . 1 . . . . . . . Patrol Navigation 1 | . . . . . . . . . . . . . . . 1 . . . . . Structural Interface 1 | . . . . . . . . . . . 1 . . . . . . . . . Robots Hacked 72 | . . . . . . . . . 3 4 10 16 5 7 5 19 3 . . . Non-combat 18 | . . . . . . . . . . 1 . 6 . 3 . 8 . . . . Combat 54 | . . . . . . . . . 3 3 10 10 5 4 5 11 3 . . . Robot Hacks Applied 90 | . . . . . . . . . 3 5 10 22 5 14 5 22 4 . . . parse_system 4 | . . . . . . . . . . . . 2 . 1 . 1 . . . . no_distress 1 | . . . . . . . . . . . . . . 1 . . . . . . generate_echo 4 | . . . . . . . . . . . . 1 . 1 . 2 . . . . deconstruct_machine 1 | . . . . . . . . . . . . . . . . 1 . . . . ignore_repairs 4 | . . . . . . . . . . . . 3 . . . 1 . . . . map_walls 1 | . . . . . . . . . . . . 1 . . . . . . . . map_earth 1 | . . . . . . . . . . 1 . . . . . . . . . . find_fabricator 1 | . . . . . . . . . . . . . . 1 . . . . . . find_dsf 1 | . . . . . . . . . . . . . . . . 1 . . . . drop_inventory 2 | . . . . . . . . . . . . . . 1 . 1 . . . . locate_stockpiles 1 | . . . . . . . . . . . . . . 1 . . . . . . find_recycling 1 | . . . . . . . . . . . . . . 1 . . . . . . check_alert 1 | . . . . . . . . . . . . 1 . . . . . . . . purge_threat 2 | . . . . . . . . . . . . 2 . . . . . . . . map_route 2 | . . . . . . . . . . . . . . 1 . 1 . . . . mark_security 2 | . . . . . . . . . . . . . . 1 . 1 . . . . find_garrison 2 | . . . . . . . . . . . . 1 . 1 . . . . . . overload_power 1 | . . . . . . . . . 1 . . . . . . . . . . . amplify_resonance 9 | . . . . . . . . . . . 1 2 1 2 1 2 . . . . disable_weapons 1 | . . . . . . . . . . . . . . . . 1 . . . . reboot_system 4 | . . . . . . . . . . . . 2 . . . 2 . . . . overwrite_iff 9 | . . . . . . . . . . . 3 1 1 . . 2 2 . . . streamctrl_high 2 | . . . . . . . . . . . . . . . 2 . . . . . formatsys_low 4 | . . . . . . . . . . 1 . 2 . . . 1 . . . . formatsys_high 29 | . . . . . . . . . 2 3 6 4 3 2 2 5 2 . . . Relay Couplers Released 87 | . . . . . . 20 . . 22 . 21 . 17 . 7 . . . . . Machine Destruction 83 | . . . . . . 20 . . 22 . 17 . 17 . 7 . . . . . Programmers 4 | . . . . . . . . . . . 4 . . . . . . . . . Attached 36 | . . . . . . . . . 1 3 8 6 1 4 3 6 4 . . . Fabnet Peak Effective % . | . . . . . . . . . . . . . . . . . . . . . Robots Rewired 21 | . . . . . . 6 . . 3 . . . 7 . . . 1 . . 4 Allies Hacked 11 | . . . . . . . . . . 3 . 2 4 . 1 1 . . . . Hacks Repelled . | . . . . . . . . . . . . . . . . . . . . . Allies | -11 -10 -10 -10 -9 -8 -8 -8 -7 -7 -7 -7 -6 -6 -5 -5 -4 -4 -4 -3 -3 -------- Run | Yrd Mat Min Exi Min Mat Gar Mat Fac Gar Fac Gar Fac Gar Fac Gar Fac Arm Lab Res Gar Total Allies 112 | . . 6 . . . 7 . . 5 9 11 31 16 2 5 10 4 . . 6 Largest Group 33 | . . 6 5 . . 6 3 . 3 8 7 33 9 6 8 5 2 . . 2 Highest-Rated Group 1102 | . . 115 84 . . 94 45 . 89 240 208 1102 301 209 261 212 96 . . 190 Highest-Rated Ally 95 | . . 31 31 . . 20 15 . 39 37 37 41 51 51 51 64 56 . . 95 Initial Warlord ECA Mod 25 | . . . . . . . 9 8 8 . . . . . . . . . . . Total Orders 15 | . . . 3 . . . . . 5 3 . 2 2 . . . . . . . STAY 8 | . . . 3 . . . . . 3 . . 1 1 . . . . . . . FOLLOW 5 | . . . . . . . . . 2 1 . 1 1 . . . . . . . TUNNEL 1 | . . . . . . . . . . 1 . . . . . . . . . . DROP 1 | . . . . . . . . . . 1 . . . . . . . . . . Ally Attacks 514 | . . . 5 . . 31 6 . 29 5 47 115 138 1 46 35 39 . . 17 Total Damage 12772 | . . . 26 . . 727 146 . 679 116 902 2789 2952 38 1052 970 1087 . . 1288 Kills 97 | . . . 2 . . 8 1 . 6 1 9 22 22 1 12 4 5 . . 4 Allies Corrupted 3 | . . . . . . . . . . . . . 1 . 1 1 . . . . Allies Melted 1 | . . . . . . 1 . . . . . . . . . . . . . . Intel | -11 -10 -10 -10 -9 -8 -8 -8 -7 -7 -7 -7 -6 -6 -5 -5 -4 -4 -4 -3 -3 ------- Run | Yrd Mat Min Exi Min Mat Gar Mat Fac Gar Fac Gar Fac Gar Fac Gar Fac Arm Lab Res Gar Active Infowar (turns) 1781 | 31 372 . . . 184 . 893 166 135 . . . . . . . . . . . Sensors 1264 | . . . . . 70 . 893 166 135 . . . . . . . . . . . Terrain 154 | . . . . . 154 . . . . . . . . . . . . . . . Seismic 403 | 31 372 . . . . . . . . . . . . . . . . . . . Robot Analysis Total . | . . . . . . . . . . . . . . . . . . . . . Derelict Logs Recovered 1 | . . 1 . . . . . . . . . . . . . . . . . . Drone Launches . | . . . . . . . . . . . . . . . . . . . . . Drone Recoveries . | . . . . . . . . . . . . . . . . . . . . . Exploration | -11 -10 -10 -10 -9 -8 -8 -8 -7 -7 -7 -7 -6 -6 -5 -5 -4 -4 -4 -3 -3 ------------- Run | Yrd Mat Min Exi Min Mat Gar Mat Fac Gar Fac Gar Fac Gar Fac Gar Fac Arm Lab Res Gar Turns Passed 20685 | 115 1569 1861 3006 339 250 2215 1875 225 2316 562 877 694 1700 311 921 460 1134 8 95 152 Spaces Moved 9232 | 55 544 571 986 152 106 995 642 114 776 293 584 363 966 211 605 315 664 17 175 98 Core 303 | 5 . . . . . . . . . . . . . . . . 201 17 46 34 Treads 2987 | 50 544 571 858 . . 1 3 . 552 293 46 . . . . . 69 . . . Legs 4710 | . . . 128 152 106 994 94 . . . 412 363 966 211 605 315 364 . . . Wheels 883 | . . . . . . . 545 114 224 . . . . . . . . . . . Hover 192 | . . . . . . . . . . . 126 . . . . . 30 . . 36 Flight 157 | . . . . . . . . . . . . . . . . . . . 129 28 Fastest Speed 27 | 50 160 320 160 190 190 190 190 190 160 160 56 120 117 117 116 116 50 50 27 27 Average Speed 182 | 150 253 320 282 190 193 191 198 190 253 161 119 120 119 117 116 116 108 50 35 47 Slowest Speed 640 | 160 320 320 330 190 260 400 560 190 640 240 240 120 120 117 117 117 500 50 50 60 Overloaded Moves . | . . . . . . . . . . . . . . . . . . . . . Propulsion Burnouts . | . . . . . . . . . . . . . . . . . . . . . Robots Hopped 1 | . . . . . . . . . . . . . . . . . . . 1 . Potential Cave-ins 3 | . . . . . . . 3 . . . . . . . . . . . . . Cave-ins Triggered . | . . . . . . . . . . . . . . . . . . . . . Exploration Rate (%) 42 | 4 82 98 70 32 10 86 75 7 61 6 87 10 90 8 71 12 48 6 7 18 Regions Visited 20 Branch Regions 5 Pre-discovered Areas 2 | . . 1 1 . . . . . . . . . . . . . . . . . Known Exits Taken 7 | . . . . . 1 . 1 1 . 1 . 1 . 1 . . . . 1 . Unknown Exits Taken 8 | 1 1 1 1 1 . . . . . . . . . . . 1 1 1 . . Scrap Searched 1 | . . 1 . . . . . . . . . . . . . . . . . . Spaces Dug 55 | . . . . . 1 3 1 . 2 . . 1 6 . 1 . 40 . . . Terrain Destroyed 387 | . 22 6 . 10 1 12 72 . 47 10 1 2 53 . 4 2 145 . . . Melee . | . . . . . . . . . . . . . . . . . . . . . Projectile 110 | . . . . 10 1 4 12 . 1 . 1 2 31 . 4 2 42 . . . AOE 274 | . 22 6 . . . 8 58 . 45 10 . . 22 . . . 103 . . . Terrain Rammed . | . . . . . . . . . . . . . . . . . . . . . Walls Destroyed . | . . . . . . . . . . . . . . . . . . . . . Machines Disabled . | . . . . . . . . . . . . . . . . . . . . . Actions | -11 -10 -10 -10 -9 -8 -8 -8 -7 -7 -7 -7 -6 -6 -5 -5 -4 -4 -4 -3 -3 --------- Run | Yrd Mat Min Exi Min Mat Gar Mat Fac Gar Fac Gar Fac Gar Fac Gar Fac Arm Lab Res Gar Total 11980 | 74 656 588 1140 180 137 1226 1031 123 1045 377 731 594 1354 271 747 387 910 16 203 190 Wait 692 | 2 13 4 6 11 . 2 222 . 7 59 21 173 27 36 38 11 44 . 12 4 Move 9213 | 54 543 570 985 151 106 994 641 114 775 292 583 362 965 210 604 314 663 16 173 98 Hop 1 | . . . . . . . . . . . . . . . . . . . 1 . Pick Up 287 | 6 29 1 36 . 6 22 9 4 57 5 27 . 35 2 10 4 32 . 1 1 Fast Attach 127 | 7 1 . 8 . 2 4 5 . 13 . 14 . 13 1 4 6 42 . 6 1 Attach 90 | . . . 8 . 4 9 6 1 5 5 5 15 6 2 3 4 14 . 2 1 Detach 49 | . . . 9 . 1 6 1 . 4 1 9 . 6 . . 2 9 . 1 . Swap 133 | . 10 2 9 3 4 11 23 1 16 2 12 4 14 3 7 5 7 . . . Drop 161 | . 15 1 30 . 3 23 12 3 29 . 14 . 12 . 7 3 6 . 3 . Fire 820 | 5 45 10 49 15 11 62 111 . 92 9 36 40 106 17 66 38 92 . 2 14 Melee . | . . . . . . . . . . . . . . . . . . . . . Ram 29 | . . . . . . . . . . . . . . . . . . . 2 27 Kick 2 | . . . . . . . . . . . . . 2 . . . . . . . Crush 1 | . . . . . . . 1 . . . . . . . . . . . . . Escape Stasis 103 | . . . . . . 31 . . 23 . 9 . 6 . 7 . . . . 27 Rewire 259 | . . . . . . 57 . . 20 . 1 . 162 . 1 . 1 . . 17 Trap 13 | . . . . . . 5 . . 4 4 . . . . . . . . . . Miscellaneous . | . . . . . . . . . . . . . . . . . . . . . Route ------- -11/Scrapyard -10/Materials (discovered 5 exits: [*Mat x3] / *Min / [*Sub]) -10/Mines (discovered 3 exits: [*Mat x2] / *Exi) -10/Exiles -9/Mines -8/Materials -8/Garrison (discovered 4 exits: *Fac x3 / *Mat) -8/Materials (discovered 3 exits: *Fac x3) -7/Factory -7/Garrison (discovered 2 exits: *Fac x2) -7/Factory -7/Garrison (discovered 3 exits: *Fac x3) -6/Factory -6/Garrison (discovered 3 exits: *Fac x3) -5/Factory (discovered 3 exits: *Fac / [Upp] / Gar) -5/Garrison (discovered 2 exits: *Fac x2) -4/Factory (discovered 2 exits: [*Upp] / *Arm) -4/Armory -4/Lab -3/Research -3/Garrison History --------- Turn | Location | Event 3 | -11/Scrapyard | Discovered new exit (range 16) 116 | -11/Scrapyard | Entered Materials 320 | -10/Materials | Build established: Mutant 431 | -10/Materials | Discovered new exit (range 9) 526 | -10/Materials | Discovered new exit (range 8) 877 | -10/Materials | Discovered new exit (range 8) 1487 | -10/Materials | Discovered new exit (range 16) 1583 | -10/Materials | Discovered new exit (range 16) 1685 | -10/Materials | Entered Mines 1839 | -10/Mines | Found a damaged Exp. Sensor Array with a note attached 1846 | -10/Mines | Found Prototype Device 2391 | -10/Mines | Assisted by bots powering up and referring to "LRC-V3" 2723 | -10/Mines | Discovered new exit (range 5) 2958 | -10/Mines | Discovered new exit (range 9) 3009 | -10/Mines | Received a Mining Laser from a helpful Derelict 3523 | -10/Mines | Deemed a non-threat by the Exiles lab entrance 3526 | -10/Mines | Discovered new exit (range 5) 3546 | -10/Mines | Entered Exiles 3546 | -10/Exiles | Accompanied by 5 allies 3576 | -10/Exiles | Led the pair of lost Derelicts to a safe place 3633 | -10/Exiles | Met 8R-AWN 3690 | -10/Exiles | Met EX-HEX 3812 | -10/Exiles | Met EX-DEC 4594 | -10/Exiles | Discovered new exit (range 14) 4864 | -10/Exiles | Met EX-BIN 4902 | -10/Exiles | Aligned with FarCom system 4905 | -10/Exiles | Given EX-Vault access code 4985 | -10/Exiles | Opened EX-Vault 5008 | -10/Exiles | Found Lightpack 2.0 5012 | -10/Exiles | Found Skeleton Box 5029 | -10/Exiles | Found Gui. Plasma Cannon 5097 | -10/Exiles | Warned to stay clear of 0b10 Research branches 5206 | -10/Exiles | Learned location of Zion (-6) 5980 | -10/Exiles | Attacked by the Exiles 6098 | -10/Exiles | Core integrity fell below 50% 6101 | -10/Exiles | Lost 3 allies 6124 | -10/Exiles | Core integrity fell below 20% 6181 | -10/Exiles | Destroyed 8R-AWN 6193 | -10/Exiles | Lost 6 parts (1p2n2u1w) 6206 | -10/Exiles | Found Prototype Ballistic Gun 6206 | -10/Exiles | Identified 8R-AWN's Boregun 6215 | -10/Exiles | Found Prototype Protection 6219 | -10/Exiles | Found Prototype Device 6219 | -10/Exiles | Identified AS-neutralizer No. 17b 6294 | -10/Exiles | Found 8R-AWN's Boregun 6299 | -10/Exiles | Found Prototype Processor 6552 | -10/Exiles | Stole three prototypes: Lightpack 2.0, Skeleton Box, Gui. Plasma Cannon 6552 | -10/Exiles | Entered Mines 6791 | -9/Mines | Build established: Scavenger-Mutant 6885 | -9/Mines | Discovered new exit (range 4) 6891 | -9/Mines | Entered Materials 6891 | -8/Materials | Evolved 4 slots: Propulsion x1, Utility x3 6891 | -8/Materials | Identified 8R-AWN's Armor/EX 7141 | -8/Materials | Identified exit to Garrison 7141 | -8/Materials | Entered Garrison 7209 | -8/Garrison | Identified Exp. Targeting Computer 7271 | -8/Garrison | Triggered checkpoint 7423 | -8/Garrison | Triggered checkpoint 7511 | -8/Garrison | Triggered checkpoint 7514 | -8/Garrison | Discovered new exit (range 12) 7789 | -8/Garrison | Triggered checkpoint 7809 | -8/Garrison | Triggered checkpoint 7953 | -8/Garrison | Triggered checkpoint 7974 | -8/Garrison | Discovered new exit (range 11) 8322 | -8/Garrison | Discovered new exit (range 10) 8337 | -8/Garrison | Triggered checkpoint 8357 | -8/Garrison | Garrison Relay disabled 8409 | -8/Garrison | Triggered checkpoint 8482 | -8/Garrison | Garrison Relay disabled 8725 | -8/Garrison | Triggered checkpoint 8769 | -8/Garrison | Triggered checkpoint 8852 | -8/Garrison | Discovered new exit (range 14) 8900 | -8/Garrison | Rescued a captive Derelict 8987 | -8/Garrison | Triggered checkpoint 9029 | -8/Garrison | Garrison Relay disabled 9356 | -8/Garrison | Entered Materials 9356 | -8/Materials | Accompanied by 3 allies 9619 | -8/Materials | Lost 3 allies 10354 | -8/Materials | Identified exit to Factory 10488 | -8/Materials | Core integrity fell below 50% 10556 | -8/Materials | First assault squad dispatched 11231 | -8/Materials | Entered Factory 11231 | -7/Factory | Evolved 2 slots: Propulsion x1, Utility x1 11456 | -7/Factory | Identified exit to Garrison 11456 | -7/Factory | Entered Garrison 11600 | -7/Garrison | Triggered checkpoint 11645 | -7/Garrison | Triggered checkpoint 11826 | -7/Garrison | Triggered checkpoint 11855 | -7/Garrison | Garrison Relay disabled 12020 | -7/Garrison | Triggered checkpoint 12146 | -7/Garrison | Triggered checkpoint 12167 | -7/Garrison | Garrison Relay disabled 12276 | -7/Garrison | Discovered new exit (range 12) 12578 | -7/Garrison | Triggered checkpoint 12656 | -7/Garrison | Triggered checkpoint 12701 | -7/Garrison | System corruption reached 10% 12723 | -7/Garrison | Destroyed 7 combat bots 12731 | -7/Garrison | Lost 5 parts (2n3u) 12866 | -7/Garrison | Discovered new exit (range 8) 12888 | -7/Garrison | Triggered checkpoint 13024 | -7/Garrison | Triggered checkpoint 13064 | -7/Garrison | Installed Relay Interface Framework 13116 | -7/Garrison | Garrison Relay disabled 13185 | -7/Garrison | Garrison Relay disabled 13404 | -7/Garrison | Build established: Bothacker-Mutant 13772 | -7/Garrison | Entered Factory 13845 | -7/Factory | Identified exit to Garrison 13953 | -7/Factory | Fabricated M-14 Sweeper? 14166 | -7/Factory | Fabricated P-60 Hacker (x2) 14306 | -7/Factory | Fabricated P-60 Hacker (x2) 14334 | -7/Factory | Entered Garrison 14334 | -7/Garrison | Accompanied by 4 allies 14349 | -7/Garrison | Murdered 4 allies 14425 | -7/Garrison | Triggered checkpoint 14469 | -7/Garrison | Lost 3 allies 14495 | -7/Garrison | Garrison Relay disabled 14514 | -7/Garrison | Expanded RIF knowledge: Structural Interface 14598 | -7/Garrison | Triggered checkpoint 14606 | -7/Garrison | Triggered checkpoint 14606 | -7/Garrison | Triggered checkpoint 14612 | -7/Garrison | Triggered checkpoint 14673 | -7/Garrison | Discovered new exit (range 15) 14706 | -7/Garrison | Garrison Relay disabled 14820 | -7/Garrison | Discovered new exit (range 10) 14851 | -7/Garrison | Rescued a captive Derelict 14854 | -7/Garrison | Rescued a captive Derelict 14861 | -7/Garrison | Garrison Relay disabled 14880 | -7/Garrison | Triggered checkpoint 14922 | -7/Garrison | Spotted B-75 Beast 14936 | -7/Garrison | Destroyed B-75 Beast 15134 | -7/Garrison | Garrison Relay disabled 15172 | -7/Garrison | Triggered checkpoint 15172 | -7/Garrison | Discovered new exit (range 11) 15211 | -7/Garrison | Entered Factory 15211 | -6/Factory | Accompanied by 7 allies 15211 | -6/Factory | Evolved 2 slots: Power x1, Utility x1 15310 | -6/Factory | Garrison activated, responded to threat 15336 | -6/Factory | Fabricated P-60 Hacker (x2) 15378 | -6/Factory | Fabricated P-60 Hacker (x2) 15411 | -6/Factory | Fabricated P-60 Hacker (x2) 15455 | -6/Factory | Fabricated P-60 Hacker? 15519 | -6/Factory | Fabricated P-60 Hacker (x2) 15568 | -6/Factory | Fabricated P-60 Hacker (x2) 15601 | -6/Factory | Fabricated P-60 Hacker (x1) 15634 | -6/Factory | Fabricated P-60 Hacker (x1) 15667 | -6/Factory | Fabricated P-60 Hacker (x2) 15688 | -6/Factory | Build established: Commander-Mutant 15701 | -6/Factory | Fabricated P-60 Hacker (x2) 15734 | -6/Factory | Fabricated P-60 Hacker (x2) 15767 | -6/Factory | Fabricated P-60 Hacker? 15796 | -6/Factory | Hacker 5i assimilated hostile H-66 Slayer 15835 | -6/Factory | Spotted B-75 Beast 15837 | -6/Factory | Hacker 5d assimilated hostile S-27 Virus 15848 | -6/Factory | Allies destroyed B-75 Beast 15875 | -6/Factory | Lost 18 allies 15896 | -6/Factory | Identified exit to Garrison 15905 | -6/Factory | Entered Garrison 15905 | -6/Garrison | Accompanied by 8 allies 15929 | -6/Garrison | Hacker 5f assimilated hostile S-27 Virus 15932 | -6/Garrison | Triggered checkpoint 15948 | -6/Garrison | Hacker 5s assimilated hostile G-50 Soldier 15956 | -6/Garrison | Garrison Relay disabled 15973 | -6/Garrison | Lost 4 allies 16035 | -6/Garrison | Triggered checkpoint 16063 | -6/Garrison | Hacker 5s assimilated hostile G-50 Soldier 16085 | -6/Garrison | Lost 9 allies 16097 | -6/Garrison | Triggered checkpoint 16215 | -6/Garrison | Build established: Bothacker-Mutant 16394 | -6/Garrison | Spotted B-75 Beast 16415 | -6/Garrison | Allies destroyed B-75 Beast 16438 | -6/Garrison | Found Relay Coupler [Proto] 16440 | -6/Garrison | Found Relay Coupler [Proto] 16442 | -6/Garrison | Found Relay Coupler [Proto] 16444 | -6/Garrison | Found Relay Coupler [Proto] 16565 | -6/Garrison | Destroyed 7 combat bots 16591 | -6/Garrison | Lost 6 parts (2p2n2u) 16736 | -6/Garrison | Discovered new exit (range 11) 16737 | -6/Garrison | Triggered checkpoint 16763 | -6/Garrison | Garrison Relay disabled 16908 | -6/Garrison | Triggered checkpoint 16917 | -6/Garrison | Garrison Relay disabled 17005 | -6/Garrison | Discovered new exit (range 12) 17231 | -6/Garrison | Triggered checkpoint 17289 | -6/Garrison | Rescued a captive Derelict 17291 | -6/Garrison | Rescued a captive Derelict 17331 | -6/Garrison | Expanded RIF knowledge: Command Fork 17345 | -6/Garrison | Discovered new exit (range 12) 17363 | -6/Garrison | Triggered checkpoint 17363 | -6/Garrison | Triggered checkpoint 17411 | -6/Garrison | Garrison Relay disabled 17605 | -6/Garrison | Entered Factory 17605 | -5/Factory | Accompanied by 4 allies 17605 | -5/Factory | Evolved 2 slots: Utility x1, Weapon x1 17748 | -5/Factory | Discovered new exit (range 13) 17767 | -5/Factory | Discovered new exit (range 45) 17884 | -5/Factory | Identified exit to Garrison 17916 | -5/Factory | Entered Garrison 17916 | -5/Garrison | Accompanied by 6 allies 17970 | -5/Garrison | Triggered checkpoint 18013 | -5/Garrison | Build established: Bothacker-Gunner 18060 | -5/Garrison | Expanded RIF knowledge: Patrol Navigation 18083 | -5/Garrison | Triggered checkpoint 18084 | -5/Garrison | Triggered checkpoint 18089 | -5/Garrison | Triggered checkpoint 18119 | -5/Garrison | Lost 3 allies 18205 | -5/Garrison | Triggered checkpoint 18246 | -5/Garrison | Lost 3 allies 18359 | -5/Garrison | Build established: Botlord-Gunner 18428 | -5/Garrison | Triggered checkpoint 18441 | -5/Garrison | Garrison Relay disabled 18466 | -5/Garrison | Discovered new exit (range 2) 18650 | -5/Garrison | Triggered checkpoint 18694 | -5/Garrison | Garrison Relay disabled 18830 | -5/Garrison | Discovered new exit (range 4) 18837 | -5/Garrison | Entered Factory 18837 | -4/Factory | Evolved 2 slots: Utility x2 19028 | -4/Factory | Discovered new exit (range 9) 19146 | -4/Factory | Build established: Botlord-Tank 19152 | -4/Factory | Discovered new exit (range 53) 19279 | -4/Factory | P-80 Master assimilated allied Serf 7a 19297 | -4/Factory | Entered Armory 19322 | -4/Armory | Lost 4 allies 19389 | -4/Armory | Lost 3 parts (1u2w) 19639 | -4/Armory | Lost 12 parts (2p4n4u2w) 20144 | -4/Armory | Lost 3 parts (1u2w) 20198 | -4/Armory | Spotted B-86 Titan 20277 | -4/Armory | Core integrity fell below 50% 20313 | -4/Armory | Core integrity fell below 20% 20342 | -4/Armory | Lost 17 parts (2p2n10u3w) 20343 | -4/Armory | Spotted Armor Guard 20343 | -4/Armory | Spotted Armor Guard 20403 | -4/Armory | Discovered new exit (range 4) 20431 | -4/Armory | Entered Lab 20431 | -4/Lab | Discovered new exit (range 9) 20438 | -4/Lab | Unable to decrypt terminal 20438 | -4/Lab | Unable to decrypt terminal 20439 | -4/Lab | Entered Research 20439 | -3/Research | Evolved 2 slots: Propulsion x2 20534 | -3/Research | Identified exit to Garrison 20534 | -3/Research | Entered Garrison 20538 | -3/Garrison | Found embedded Infiltrators 20574 | -3/Garrison | Spotted B-86 Titan 20632 | -3/Garrison | Triggered checkpoint 20653 | -3/Garrison | Lost 4 parts (2n1u1w) 20668 | -3/Garrison | Core integrity fell below 50% 20683 | -3/Garrison | Core integrity fell below 20% 20686 | -3/Garrison | Destroyed by B-86 Titan with Hardcell Cannon Last Messages --------------- 20673_ Hacking Suite destroyed. 20673_ Broken Imp. Diametric Drive destroyed. 20673_ Critical hit (Blast). 20673_ Knocked back. 20674_ Acquired 3 matter. 20675_ Slammed into B-86 Titan. 20676_ Adv. Coolant Injector broken. 20676_ Destabilizing: Short circuit. 20677_ B-86 Titan activates siege mode. 20677_ Penetrated by Slug. 20677_ Slammed into B-86 Titan. 20680_ Knocked back. 20681_ Acquired 6 matter. 20681_ Slammed into B-86 Titan. 20682_ Destabilizing: Core damaged (-39). 20683_ Broken Adv. Coolant Injector destroyed. 20683_ Slammed into B-86 Titan. 20684_ Destabilizing: System corrupted (+1). 20685_ Slammed into B-86 Titan. 20686_ Destabilizing: Core damaged (-65). Map ----- +----------------------------------------------------+ | | | | | | | | | ?????????????????????????????????????????????????? | | ?????????????????????????????????????????????????? | | ?????????????????????????????????????????????????? | | ?????????????????????????????????????????????????? | | ?????????????????????????????????????????????????? | | ?????????????????????????????????????????????????? | | ?????????????????????????????????????????????????? | | ?????????????????????????????????????????????????? | | ?????????????????????????????????????????????????? | | ?????????????????????????????????????????????????? | | ????????????????????#############????????????????? | | ????????????????????#*!! #????????????????? | | ????????????????????#%[=*% #????????????????? | | ????????????????????#=%%/* #????????????????? | | ????????????????????# =! = #????????????????? | | ????????????????????# #????????????????? | | ????????????????????####*########????????????????? | | ???????????????????????#%#???????????????????????? | | ???????????????????????#!#???????????????????????? | | ???????????????????????#l#???????????????????????? | | ???????????????????????#g##??????????????????????? | | ???????????????????????# @#??????????????????????? | | ???????????????????????#BB#??#####???????????????? | | ???????????????????????#BB#? #???????????????? | | ??????????????????######+;;# ###?????????????? | | ??????????????????# #?????????????? | | ??????????????????## ###;""+#### #?????????????? | | ??????????????????#""""???##" #??# #?????????????? | | ??????????????????####??????" #??# #???#####?????? | | ????????????????????????????# "??# #???# #?????? | | ?????????????????????????#### ""## ##### #?????? | | ????????????????????????##[ /[ + #?????? | | ????????????????????????#%=#= "" #?????? | | ????????????????????????##### ## #######+##?????? | | ????????????????????????????# ## #??????????????? | | ????????????????????????????# ## #??????????????? | | ????????????????????????????# ## #??????????????? | | ??????????????????????####### ## #??????????????? | | ?????????????????????# / #??????????????? | | ?????????????????????# ######### #??????????????? | | ???????????????????????????????# #??????????????? | | ???????????????????????????????# #?????????? #??? | | ???????????????????????????????# #?????? #??? | | ???????????????? [%!=%##### ### " #??? | | ???????????????? %*[% = " """ ?????? | | ???????????????? % [%=% = ### " "#??? | +----------------------------------------------------+ Best States ------------- Heat Dissipation 146 Coolant Potential 100 Energy Generation 43 Energy Capacity 560 Matter Stores 500 Matter Capacity 500 Sight Range 16 Robot Scan Range 15 Terrain Scan Range 16 Terrain Scan Density 10 Base Temperature (-) 200 Armor Coverage 525 Resistance: KI 30 Resistance: TH 15 Resistance: EM 15 Weapon Cycling 25 Evasion (%) 67 Targeting Accuracy 12 Recoil Reduction 3 Salvage Targeting 1 Offensive Hacking 38 Relay Coupler Types 5 Relay Coupler Value 79 Authchip Count 14 Item Schematics ----------------- None Robot Schematics ------------------ P-60 Hacker | -7/Factory | Hacked Fabricated ------------ M-14 Sweeper | x1 | -7/Factory | Preloaded P-60 Hacker | x2 | -7/Factory | Authchip P-60 Hacker | x2 | -7/Factory | Authchip P-60 Hacker | x2 | -6/Factory | Authchip P-60 Hacker | x2 | -6/Factory | Authchip P-60 Hacker | x2 | -6/Factory | Authchip P-60 Hacker | x2 | -6/Factory | Authchip P-60 Hacker | x2 | -6/Factory | Authchip P-60 Hacker | x2 | -6/Factory | Authchip P-60 Hacker | x1 | -6/Factory | Authchip P-60 Hacker | x1 | -6/Factory | Authchip P-60 Hacker | x2 | -6/Factory | Authchip P-60 Hacker | x2 | -6/Factory | Authchip P-60 Hacker | x2 | -6/Factory | Authchip P-60 Hacker | x2 | -6/Factory | Authchip Repaired ---------- Nothing Alien Tech Used ----------------- None Achievements -------------- War Machine Challenges ------------ None Game ------ Seed VortexCentriumAutohacker Manual? 0 Play Time 03:44:20 Cumulative 227.5 hours Start 2025.05.20 @ 14:35:38 End 2025.05.20 @ 19:29:31 Sessions 1 Manual Loads 0 Difficulty Rogue Special Mode None Game No. 123 Rogue 115 Adventurer 8 Explorer 0 Win Type - Total 8 Types 4/0/2/1/0/0/0/0/0/1 Lore% 80 Gallery% 77 Achievement% 65 Wizard Run 0 Options --------- Layout 2 ASCII 0 Keyboard 1 Movement Numpad Keybinds 1 Fullscreen 1 Font 48/Smallcaps Map View 50x44 Zoom Use 0% Tactical HUD 1 Map Filters NONE Filters NONE Steam 1 RUN: 366f3f7b-4c85-4098-bc82-ddff05844905